{"text_format":"1","workbook":"xlsx","n_sheets":3,"sheets":["selecteer de teksten","geselecteerde teksten","omzettingstabel"],"not_rendered":{"charts":0,"images":2,"macros":1,"external_links":0,"defined_names":7,"comments":1,"pivot_tables":0},"unopened":[],"bounds":{"document_bytes":16777216,"sheet_cells":100000,"rows_first":2000,"rows_last":500,"rows_between":2000,"halvings":0,"cell_chars":16384,"cell_head_chars":4096},"cells_cut":0,"cells_raw":0,"read":"whole","date_system":"1900"}

{"sheet":"selecteer de teksten","index":0,"n_rows":153,"n_cols":21,"rows_kept":153,"cut":false,"hidden":false,"merged":[[2,14,2,15],[8,14,8,15]]}
[null,"Frans havo"]
[]
[null,null,"jaar","tekst","omschrijving","indicatie moeilijkheidsgraad","P","L","N",null,"ü",null,null,null,"grenswaarden",null,null,"P","L","N","bijdrage"]
[null,null,2012,1,"Menhirs et dolmens",{"$f":"IF(G4>P$7,\"makkelijke tekst\",IF(G4<P$6,\"moeilijke tekst\",\"tekst van gemiddelde moeilijkheid\"))","v":"tekst van gemiddelde moeilijkheid"},56.888888888888893,2,0.87999999999999989,null,null,null,null,null,"gemiddelde",{"$f":"AVERAGE(G4:G154)","v":58.453170370370401},null,{"$f":"IF($K4=\"ü\",$G4,\"\")","v":""},{"$f":"IF($K4=\"ü\",$H4,\"\")","v":""},{"$f":"IF($K4=\"ü\",$I4,\"\")","v":""},{"$f":"IF($K4=\"ü\",$G4*$H4,\"\")","v":""}]
[null,null,2012,2,"Les fromages à l’attaque","moeilijke tekst",38.888888888888893,4,2.4999999999999996,null,null,null,null,null,"standaarddeviatie",{"$f":"STDEVA(G4:G154)","v":13.37187006726451},null,"","","",""]
[null,null,2012,3,"La folie du furet","makkelijke tekst",71.888888888888886,5,-0.46999999999999975,null,null,null,null,null,"M-S",{"$f":"P4-P5","v":45.081300303105891},null,"","","",""]
[null,null,2012,4,"Un garçon pas comme les autres","moeilijke tekst",38.888888888888893,5,2.4999999999999996,null,null,null,null,null,"M+S",{"$f":"P4+P5","v":71.825040437634911},null,"","","",""]
[null,null,2012,5,"Maroc: le français revient en force","tekst van gemiddelde moeilijkheid",49.888888888888893,7,1.5099999999999998,null,null,null,null,null,null,null,null,"","","",""]
[null,null,2012,6,"Une aventure à ne jamais oublier","tekst van gemiddelde moeilijkheid",51.888888888888893,5,1.3299999999999992,null,null,null,null,null,"gewogen P en N",null,null,"","","",""]
[null,null,2012,7,"Le grand gaspillage alimentaire","tekst van gemiddelde moeilijkheid",46.888888888888893,7,1.7799999999999994,null,null,null,null,null,"totale bijdrage",{"$f":"SUM(U4:V154)","v":0},null,"","","",""]
[null,null,2012,8,"Ibrahim, 20 ans, surfeur","moeilijke tekst",40.888888888888893,4,2.3199999999999994,null,null,null,null,null,"gem sc",{"$f":"P10/100","v":0},null,"","","",""]
[null,null,2012,9,"Les marques font leur show dans la rue","tekst van gemiddelde moeilijkheid",63.888888888888893,5,0.25,null,null,null,null,null,"totale lengte",{"$f":"SUM(S4:S154)","v":0},null,"","","",""]
[null,null,2012,10,"Jo-Wilfried Tsonga, la positive attitude","tekst van gemiddelde moeilijkheid",69.888888888888886,3,-0.29000000000000004,null,null,null,null,null,"9*P",{"$f":"IF(P12=0,0,9*P11/P12)","v":0},null,"","","",""]
[null,null,2012,11,"Le «french kiss» interdit à Londres","makkelijke tekst",72.888888888888886,1,-0.55999999999999961,null,null,null,null,null,"n-term",{"$f":"IF(P12=0,1,refgemcijfer-P13)","v":1},null,"","","",""]
[null,null,2012,12,"Alain Robert, le «Spider-Man» français","tekst van gemiddelde moeilijkheid",55.888888888888893,1,0.96999999999999975,null,null,null,null,null,"afgeronde N",{"$f":"ROUND(P14,1)","v":1},null,"","","",""]
[null,null,2013,1,"Sponsoriser son mariage","makkelijke tekst",75.888888888888886,2,-0.83000000000000007,null,null,null,null,null,null,null,null,"","","",""]
[null,null,2013,2,"«Un garçon, ça pleure pas, une fille, c’est nul en maths»","tekst van gemiddelde moeilijkheid",62.448888888888895,4,0.37959999999999905,null,null,null,null,null,"Ref.gem.cijfer",6,null,"","","",""]
[null,null,2013,3,"Demain, le Grand Paris","tekst van gemiddelde moeilijkheid",59.668888888888894,6,0.62979999999999947,null,null,null,null,null,null,null,null,"","","",""]
[null,null,2013,4,"La lumière des femmes","tekst van gemiddelde moeilijkheid",60.298888888888889,6,0.57309999999999928,null,null,null,null,null,null,null,null,"","","",""]
[null,null,2013,5,"Les enfants du cirque Shems’y","tekst van gemiddelde moeilijkheid",55.288888888888891,5,1.024,null,null,null,null,null,null,null,null,"","","",""]
[null,null,2013,6,"Ils se mettent à nu","tekst van gemiddelde moeilijkheid",53.748888888888892,7,1.1626000000000003,null,null,null,null,null,null,null,null,"","","",""]
[null,null,2013,7,"Professeur, un métier de rêve?","tekst van gemiddelde moeilijkheid",63.388888888888893,4,0.29499999999999993,null,null,null,null,null,null,null,null,"","","",""]
[null,null,2013,8,"«L’Etat, c’est moi!»","moeilijke tekst",43.898888888888891,3,2.0490999999999997,null,null,null,null,null,null,null,null,"","","",""]
[null,null,2013,9,"Les écoles au Moyen-Age","tekst van gemiddelde moeilijkheid",48.328888888888891,5,1.6503999999999994,null,null,null,null,null,null,null,null,"","","",""]
[null,null,2013,10,"Un graffeur français échappe à la prison","makkelijke tekst",74.888888888888886,1,-0.74000000000000021,null,null,null,null,null,null,null,null,"","","",""]
[null,null,2013,11,"L’avenir des cartes postales","moeilijke tekst",29.888888888888893,2,3.3099999999999996,null,null,null,null,null,null,null,null,"","","",""]
[null,null,2013,12,"Les pigeons jouent les critiques d’art","tekst van gemiddelde moeilijkheid",50.088888888888896,3,1.4919999999999991,null,null,null,null,null,null,null,null,"","","",""]
[null,null,2013,13,"Le tee-shirt","moeilijke tekst",33.888888888888893,2,2.9499999999999993,null,null,null,null,null,null,null,null,"","","",""]
[null,null,2014,1,"Vive Wikipédia?!","tekst van gemiddelde moeilijkheid",63.5,2,0.28500000000000014,null,null,null,null,null,null,null,null,"","","",""]
[null,null,2014,2,"Le cimetière du Père-Lachaise","makkelijke tekst",77.38,2,-0.96419999999999995,null,null,null,null,null,null,null,null,"","","",""]
[null,null,2014,3,"L’Ecole de danse de l’Opéra de Paris","tekst van gemiddelde moeilijkheid",70.92,8,-0.38279999999999959,null,null,null,null,null,null,null,null,"","","",""]
[null,null,2014,4,"Des voyages pas comme les autres","makkelijke tekst",74.819999999999993,4,-0.73379999999999868,null,null,null,null,null,null,null,null,"","","",""]
[null,null,2014,5,"L’hygiène au temps du Roi-Soleil","tekst van gemiddelde moeilijkheid",59.1,5,0.68100000000000005,null,null,null,null,null,null,null,null,"","","",""]
[null,null,2014,6,"La pétanque cherche sa voie","tekst van gemiddelde moeilijkheid",57.77,3,0.80069999999999908,null,null,null,null,null,null,null,null,"","","",""]
[null,null,2014,7,"Pop française: Zaz","tekst van gemiddelde moeilijkheid",49.33,4,1.5603000000000007,null,null,null,null,null,null,null,null,"","","",""]
[null,null,2014,8,"Bruxelles, capitale de l’Art nouveau","tekst van gemiddelde moeilijkheid",47.41,7,1.7331000000000003,null,null,null,null,null,null,null,null,{"$f":"IF($K36=\"ü\",$G36,\"\")","v":""},{"$f":"IF($K36=\"ü\",$H36,\"\")","v":""},{"$f":"IF($K36=\"ü\",$I36,\"\")","v":""},{"$f":"IF($K36=\"ü\",$G36*$H36,\"\")","v":""}]
[null,null,2014,9,"L’incroyable boom des produits halal","tekst van gemiddelde moeilijkheid",63.54,7,0.28139999999999965,null,null,null,null,null,null,null,null,"","","",""]
[null,null,2014,10,"Les masseurs de rue ","tekst van gemiddelde moeilijkheid",68.569999999999993,5,-0.17129999999999868,null,null,null,null,null,null,null,null,"","","",""]
[null,null,2014,11,"Voilà de quoi surprendre","tekst van gemiddelde moeilijkheid",68,1,-0.12000000000000011,null,null,null,null,null,null,null,null,"","","",""]
[null,null,2014,12,"Que pensez-vous du fast food?","tekst van gemiddelde moeilijkheid",58,1,0.78000000000000025,null,null,null,null,null,null,null,null,"","","",""]
[null,null,2015,1,"Le garçon qui valait 30 millions de dollars","tekst van gemiddelde moeilijkheid",69.766666666666666,2,-0.27899999999999991,null,null,null,null,null,null,null,null,"","","",""]
[null,null,2015,2,"Les hommes préfèrent les blondes","makkelijke tekst",81.506666666666675,2,-1.3356000000000003,null,null,null,null,null,null,null,null,"","","",""]
[null,null,2015,3,"Carat Duchatelet, c’est du solide !","tekst van gemiddelde moeilijkheid",64.526666666666671,9,0.19259999999999966,null,null,null,null,null,null,null,null,"","","",""]
[null,null,2015,4,"Major, orang-outan star","tekst van gemiddelde moeilijkheid",71.096666666666678,4,-0.39870000000000161,null,null,null,null,null,null,null,null,"","","",""]
[null,null,2015,5,"Les meilleures pralines du monde","tekst van gemiddelde moeilijkheid",58.086666666666673,1,0.77219999999999889,null,null,null,null,null,null,null,null,"","","",""]
[null,null,2015,6,"Christian Louboutin : « Mes chaussures sont une sorte","makkelijke tekst",73.896666666666675,7,-0.6507000000000005,null,null,null,null,null,null,null,null,"","","",""]
[null,null,2015,7,"Ma mission en Ethiopie","tekst van gemiddelde moeilijkheid",55.796666666666674,5,0.97829999999999906,null,null,null,null,null,null,null,null,"","","",""]
[null,null,2015,8,"Les poissons rouges ont-ils une mémoire ?","tekst van gemiddelde moeilijkheid",54.786666666666669,1,1.0691999999999995,null,null,null,null,null,null,null,null,"","","",""]
[null,null,2015,9,"Concours Lépine, lieu d’exposition magique","tekst van gemiddelde moeilijkheid",67.796666666666667,5,-0.10169999999999924,null,null,null,null,null,null,null,null,"","","",""]
[null,null,2015,10,"Où sont passées les petites filles ?","tekst van gemiddelde moeilijkheid",64.526666666666671,7,0.19259999999999966,null,null,null,null,null,null,null,null,"","","",""]
[null,null,2015,11,"Le repas, c’est sacro-saint !","tekst van gemiddelde moeilijkheid",70.416666666666671,5,-0.33750000000000036,null,null,null,null,null,null,null,null,"","","",""]
[null,null,2015,12,"« Notre croissance s’est accélérée depuis 50 ans »","tekst van gemiddelde moeilijkheid",50.226666666666674,2,1.4795999999999996,null,null,null,null,null,null,null,null,"","","",""]
[null,null,2016,1,"Paris made in China","tekst van gemiddelde moeilijkheid",65.89,1,6.9900000000000517E-2,null,null,null,null,null,null,null,null,"","","",""]
[null,null,2016,2,"Coco Chanel","tekst van gemiddelde moeilijkheid",61.56,1,0.45960000000000001,null,null,null,null,null,null,null,null,"","","",""]
[null,null,2016,3,"Stromae","makkelijke tekst",83.36,6,-1.5023999999999997,null,null,null,null,null,null,null,null,"","","",""]
[null,null,2016,4,"Ils sont payés pour jouer",{"$f":"IF(G56>P$7,\"makkelijke tekst\",IF(G56<P$6,\"moeilijke tekst\",\"tekst van gemiddelde moeilijkheid\"))","v":"makkelijke tekst"},78.349999999999994,6,-1.0514999999999999,null,null,null,null,null,null,null,null,"","","",""]
[null,null,2016,5,"Dans les coulisses de McDonald’s","tekst van gemiddelde moeilijkheid",63.14,9,0.31740000000000013,null,null,null,null,null,null,null,null,"","","",""]
[null,null,2016,6,"Un boulanger de Moselle remporte le Concours Lépine","tekst van gemiddelde moeilijkheid",66.349999999999994,4,2.8500000000000192E-2,null,null,null,null,null,null,null,null,"","","",""]
[null,null,2016,7,"Pétanque","makkelijke tekst",82.24,2,-1.4015999999999993,null,null,null,null,null,null,null,null,"","","",""]
[null,null,2016,8,"Le vintage : une mode, un art de vivre","makkelijke tekst",76.86,6,-0.91739999999999977,null,null,null,null,null,null,null,null,"","","",""]
[null,null,2016,9,"Les 24 Heures du Mans","tekst van gemiddelde moeilijkheid",65.86,6,7.2599999999999554E-2,null,null,null,null,null,null,null,null,"","","",""]
[null,null,2016,10,"« Do you speak touriste ? »","tekst van gemiddelde moeilijkheid",54.62,6,1.0842000000000001,null,null,null,null,null,null,null,null,"","","",""]
[null,null,2016,11,"L’art de vivre en Pologne","makkelijke tekst",76.47,2,-0.88229999999999986,null,null,null,null,null,null,null,null,"","","",""]
[null,null,2017,1,"Souriez, vous êtes selfisé","makkelijke tekst",83.591111111111104,1,-1.5231999999999992,null,null,null,null,null,null,null,null,"","","",""]
[null,null,2017,2,"Porter le pantalon à Paris","moeilijke tekst",15.941111111111107,1,4.5653000000000006,null,null,null,null,null,null,null,null,"","","",""]
[null,null,2017,3,"Le Carnaval, histoire d’une fête","tekst van gemiddelde moeilijkheid",69.111111111111114,4,-0.21999999999999975,null,null,null,null,null,null,null,null,"","","",""]
[null,null,2017,4,"L’autre Tour de France","tekst van gemiddelde moeilijkheid",69.711111111111109,6,-0.27400000000000002,null,null,null,null,null,null,null,null,"","","",""]
[null,null,2017,5,"A Lyon, rendez-vous avec la lumière","tekst van gemiddelde moeilijkheid",66.981111111111119,5,-2.8300000000000658E-2,null,null,null,null,null,null,null,null,{"$f":"IF($K68=\"ü\",$G68,\"\")","v":""},{"$f":"IF($K68=\"ü\",$H68,\"\")","v":""},{"$f":"IF($K68=\"ü\",$I68,\"\")","v":""},{"$f":"IF($K68=\"ü\",$G68*$H68,\"\")","v":""}]
[null,null,2017,6,"L’Atelier du Griffon","tekst van gemiddelde moeilijkheid",62.161111111111104,3,0.40550000000000086,null,null,null,null,null,null,null,null,"","","",""]
[null,null,2017,7,"L’achat « en vrac » ","tekst van gemiddelde moeilijkheid",66.401111111111106,4,2.3900000000001143E-2,null,null,null,null,null,null,null,null,"","","",""]
[null,null,2017,8,"A la cour du Roi-Soleil","tekst van gemiddelde moeilijkheid",65.691111111111098,4,8.7800000000000544E-2,null,null,null,null,null,null,null,null,"","","",""]
[null,null,2017,9,"Une nouvelle espèce de zoo","makkelijke tekst",75.99111111111111,5,-0.83919999999999995,null,null,null,null,null,null,null,null,"","","",""]
[null,null,2017,10,"« En haut, tout est magique »","makkelijke tekst",80.24111111111111,4,-1.2216999999999993,null,null,null,null,null,null,null,null,"","","",""]
[null,null,2017,11,"Les épinards rendent-ils plus fort ?","moeilijke tekst",36.581111111111106,1,2.7077000000000004,null,null,null,null,null,null,null,null,"","","",""]
[null,null,2017,12,"Je lutte contre les préjugés","tekst van gemiddelde moeilijkheid",62.551111111111105,4,0.37040000000000095,null,null,null,null,null,null,null,null,"","","",""]
[null,null,2017,13,"Les Dîners en blanc","moeilijke tekst",43.74111111111111,4,2.0633000000000004,null,null,null,null,null,null,null,null,"","","",""]
[null,null,2017,14,"Les vêtements toxiques","makkelijke tekst",86.381111111111096,2,-1.7742999999999984,null,null,null,null,null,null,null,null,"","","",""]
[null,null,2018,1,"Qui a conçu le château de Chambord ?","tekst van gemiddelde moeilijkheid",58.111111111111107,1,0.76999999999999957,null,null,null,null,null,null,null,null,"","","",""]
[null,null,2018,2,"Marianne, symbole de la France","tekst van gemiddelde moeilijkheid",51.541111111111107,3,1.3613000000000008,null,null,null,null,null,null,null,null,"","","",""]
[null,null,2018,3,"L’étoile Michelin","makkelijke tekst",73.051111111111112,3,-0.57460000000000022,null,null,null,null,null,null,null,null,"","","",""]
[null,null,2018,4,"L’or blanc de Guérande","tekst van gemiddelde moeilijkheid",64.121111111111105,4,0.22910000000000075,null,null,null,null,null,null,null,null,"","","",""]
[null,null,2018,5,"Véhicules anciens à Paris !?","makkelijke tekst",82.111111111111114,3,-1.3899999999999997,null,null,null,null,null,null,null,null,"","","",""]
[null,null,2018,6,"Vincent Munier, photographe de nature","makkelijke tekst",75.911111111111097,4,-0.83199999999999807,null,null,null,null,null,null,null,null,"","","",""]
[null,null,2018,7,"Route des vacances","tekst van gemiddelde moeilijkheid",56.99111111111111,6,0.87080000000000002,null,null,null,null,null,null,null,null,"","","",""]
[null,null,2018,8,"Poisson d’avril","tekst van gemiddelde moeilijkheid",55.571111111111108,3,0.99859999999999971,null,null,null,null,null,null,null,null,"","","",""]
[null,null,2018,9,"L’opéra-le-bol","tekst van gemiddelde moeilijkheid",66.26111111111112,3,3.6499999999998423E-2,null,null,null,null,null,null,null,null,"","","",""]
[null,null,2018,10,"Faut-il supprimer les zoos ?","tekst van gemiddelde moeilijkheid",69.051111111111112,7,-0.21460000000000079,null,null,null,null,null,null,null,null,"","","",""]
[null,null,2018,11,"Le Mont Saint-Michel","tekst van gemiddelde moeilijkheid",54.331111111111106,4,1.1102000000000007,null,null,null,null,null,null,null,null,"","","",""]
[null,null,2018,12,"Les ateliers fleurissent un peu partout","tekst van gemiddelde moeilijkheid",58.011111111111106,4,0.7790000000000008,null,null,null,null,null,null,null,null,"","","",""]
[null,null,2018,13,"Demain dans nos assiettes","moeilijke tekst",20.111111111111107,2,4.1900000000000004,null,null,null,null,null,null,null,null,"","","",""]
[null,null,2018,14,"Peut-on donner n’importe quel prénom à un enfant ?","tekst van gemiddelde moeilijkheid",49.111111111111107,1,1.580000000000001,null,null,null,null,null,null,null,null,"","","",""]
[null,null,2019,1,"Pourquoi Napoléon portait-il la main dans sa veste ?","makkelijke tekst",73.222222222222229,1,-0.58999999999999986,null,null,null,null,null,null,null,null,"","","",""]
[null,null,2019,2,"« Une véritable ode à l’amour »","makkelijke tekst",72.552222222222227,3,-0.52970000000000006,null,null,null,null,null,null,null,null,"","","",""]
[null,null,2019,3,"Johnny, Mohamed et Tarzan","tekst van gemiddelde moeilijkheid",55.832222222222221,6,0.9751000000000003,null,null,null,null,null,null,null,null,"","","",""]
[null,null,2019,4,"Un facteur pas comme les autres","tekst van gemiddelde moeilijkheid",60.332222222222221,8,0.57010000000000005,null,null,null,null,null,null,null,null,"","","",""]
[null,null,2019,5,"Le numérique au féminin","tekst van gemiddelde moeilijkheid",52.082222222222221,5,1.3125999999999998,null,null,null,null,null,null,null,null,"","","",""]
[null,null,2019,6,"« Il y a de moins en moins de banquise »","tekst van gemiddelde moeilijkheid",49.662222222222219,6,1.5304000000000002,null,null,null,null,null,null,null,null,"","","",""]
[null,null,2019,7,"« Être parfait, ce serait … parfait ? »","tekst van gemiddelde moeilijkheid",47.972222222222221,5,1.6825000000000001,null,null,null,null,null,null,null,null,"","","",""]
[null,null,2019,8,"Paris, Ville Lumière","tekst van gemiddelde moeilijkheid",53.582222222222221,3,1.1776,null,null,null,null,null,null,null,null,"","","",""]
[null,null,2019,9,"Tekst 9","moeilijke tekst",18.222222222222225,1,4.3599999999999994,null,null,null,null,null,null,null,null,{"$f":"IF($K100=\"ü\",$G100,\"\")","v":""},{"$f":"IF($K100=\"ü\",$H100,\"\")","v":""},{"$f":"IF($K100=\"ü\",$I100,\"\")","v":""},{"$f":"IF($K100=\"ü\",$G100*$H100,\"\")","v":""}]
[null,null,2019,10,"Paradis artificiel de la fleur","tekst van gemiddelde moeilijkheid",47.30222222222222,4,1.7427999999999999,null,null,null,null,null,null,null,null,"","","",""]
[null,null,2019,11,"Jusqu’où iront les touristes ?","tekst van gemiddelde moeilijkheid",49.222222222222221,2,1.5700000000000003,null,null,null,null,null,null,null,null,"","","",""]
[null,null,2019,12,"« Le spectacle historique a tout bon ! »","tekst van gemiddelde moeilijkheid",46.042222222222222,4,1.8562000000000003,null,null,null,null,null,null,null,null,"","","",""]
[null,null,2019,13,"13  Des murs toujours plus nombreux","tekst van gemiddelde moeilijkheid",55.132222222222218,2,1.0381000000000009,null,null,null,null,null,null,null,null,"","","",""]
[null,null,2021,1,"Napoléon était-il petit ?","moeilijke tekst",31.54666666666667,1,3.1608000000000001,null,null,null,null,null,null,null,null,"","","",""]
[null,null,2021,2,"Le soldat inconnu","tekst van gemiddelde moeilijkheid",67.226666666666674,2,-5.0400000000000666E-2,null,null,null,null,null,null,null,null,"","","",""]
[null,null,2021,3,"Le béret","tekst van gemiddelde moeilijkheid",51.446666666666673,5,1.3697999999999997,null,null,null,null,null,null,null,null,"","","",""]
[null,null,2021,4,"Les savants de la Tour Eiffel","moeilijke tekst",41.74666666666667,3,2.2427999999999999,null,null,null,null,null,null,null,null,"","","",""]
[null,null,2021,5,"Une mangue du Mali","tekst van gemiddelde moeilijkheid",59.306666666666672,3,0.66239999999999988,null,null,null,null,null,null,null,null,"","","",""]
[null,null,2021,6,"L’école des Gobelins","tekst van gemiddelde moeilijkheid",64.486666666666665,5,0.19620000000000015,null,null,null,null,null,null,null,null,"","","",""]
[null,null,2021,7,"Où sont passés nos moineaux ?","tekst van gemiddelde moeilijkheid",63.24666666666667,3,0.30779999999999941,null,null,null,null,null,null,null,null,"","","",""]
[null,null,2021,8,"« Du jamais-vu dans l’histoire »","moeilijke tekst",34.526666666666671,5,2.8925999999999998,null,null,null,null,null,null,null,null,"","","",""]
[null,null,2021,9,"Un urinoir baptisé « Fontaine »","tekst van gemiddelde moeilijkheid",51.966666666666669,6,1.3229999999999995,null,null,null,null,null,null,null,null,"","","",""]
[null,null,2021,10,"Les jeunes Français et la lecture","tekst van gemiddelde moeilijkheid",47.146666666666668,5,1.7568000000000001,null,null,null,null,null,null,null,null,"","","",""]
[null,null,2021,11,"L’Europe s’attaque au plastique jetable","tekst van gemiddelde moeilijkheid",49.196666666666673,3,1.5722999999999994,null,null,null,null,null,null,null,null,"","","",""]
[null,null,2021,12,"Se prendre en photo dans la boutique","moeilijke tekst",43.986666666666672,4,2.0411999999999995,null,null,null,null,null,null,null,null,"","","",""]
[null,null,2022,1,"Un poisson écolo","tekst van gemiddelde moeilijkheid",50.616666666666674,1,1.4444999999999997,null,null,null,null,null,null,null,null,"","","",""]
[null,null,2022,2,"La boule de pétanque Obut","tekst van gemiddelde moeilijkheid",57.576666666666668,3,0.81809999999999938,null,null,null,null,null,null,null,null,"","","",""]
[null,null,2022,3,"La brasserie la plus mythique de Paris","tekst van gemiddelde moeilijkheid",69.076666666666668,5,-0.21690000000000076,null,null,null,null,null,null,null,null,"","","",""]
[null,null,2022,4,"Le manga",{"$f":"IF(G120>P$7,\"makkelijke tekst\",IF(G120<P$6,\"moeilijke tekst\",\"tekst van gemiddelde moeilijkheid\"))","v":"tekst van gemiddelde moeilijkheid"},55.596666666666671,4,0.99629999999999974,null,null,null,null,null,null,null,null,"","","",""]
[null,null,2022,5,"Le marketing de l’influence","tekst van gemiddelde moeilijkheid",47.716666666666669,7,1.7054999999999998,null,null,null,null,null,null,null,null,"","","",""]
[null,null,2022,6,"Le dîner en blanc fête ses 30 ans","tekst van gemiddelde moeilijkheid",49.476666666666674,5,1.5470999999999995,null,null,null,null,null,null,null,null,"","","",""]
[null,null,2022,7,"Les débuts des vacances à la plage","tekst van gemiddelde moeilijkheid",47.306666666666672,5,1.7423999999999999,null,null,null,null,null,null,null,null,"","","",""]
[null,null,2022,8,"« Une idée de génie ! »","tekst van gemiddelde moeilijkheid",59.38666666666667,1,0.65519999999999978,null,null,null,null,null,null,null,null,"","","",""]
[null,null,2022,9,"Un cuir à croquer","moeilijke tekst",28.896666666666665,1,3.3993000000000002,null,null,null,null,null,null,null,null,"","","",""]
[null,null,2022,10,"La Pyramide du Louvre","tekst van gemiddelde moeilijkheid",53.31666666666667,3,1.2014999999999993,null,null,null,null,null,null,null,null,"","","",""]
[null,null,2022,11,"De l’urine dans la piscine","tekst van gemiddelde moeilijkheid",49.486666666666672,4,1.5461999999999998,null,null,null,null,null,null,null,null,"","","",""]
[null,null,2022,12,"Le plastique, pas chic ?!","makkelijke tekst",74.096666666666678,2,-0.66870000000000118,null,null,null,null,null,null,null,null,"","","",""]
[null,null,2022,13,"L’alcool interdit dans les gorges de l’Ardèche","tekst van gemiddelde moeilijkheid",52.856666666666669,2,1.2428999999999997,null,null,null,null,null,null,null,null,"","","",""]
[null,null,2022,14,"Des papiers pour un pompier","tekst van gemiddelde moeilijkheid",69.366666666666674,2,-0.24300000000000033,null,null,null,null,null,null,null,null,"","","",""]
[null,null,2023,1,"EnjoyPhoenix, youtubeuse","tekst van gemiddelde moeilijkheid",61.666666666666671,1,0.45000000000000018,null,null,null,null,null,null,null,null,"","","",""]
[null,null,2023,2,"Les Néerlandais, champions en taille","tekst van gemiddelde moeilijkheid",71.666666666666671,5,-0.45000000000000018,null,null,null,null,null,null,null,null,{"$f":"IF($K132=\"ü\",$G132,\"\")","v":""},{"$f":"IF($K132=\"ü\",$H132,\"\")","v":""},{"$f":"IF($K132=\"ü\",$I132,\"\")","v":""},{"$f":"IF($K132=\"ü\",$G132*$H132,\"\")","v":""}]
[null,null,2023,3,"« Le Baiser de l’Hôtel de Ville »","tekst van gemiddelde moeilijkheid",65.666666666666671,5,8.9999999999999858E-2,null,null,null,null,null,null,null,null,"","","",""]
[null,null,2023,4,"Aidons les hérissons","tekst van gemiddelde moeilijkheid",66.666666666666671,5,0,null,null,null,null,null,null,null,null,"","","",""]
[null,null,2023,5,"Un moyen ludique de pratiquer le parkour","tekst van gemiddelde moeilijkheid",55.666666666666671,5,0.98999999999999932,null,null,null,null,null,null,null,null,"","","",""]
[null,null,2023,6,"« J’agis pour que l’Everest ne soit plus une poubelle »","tekst van gemiddelde moeilijkheid",61.666666666666671,7,0.45000000000000018,null,null,null,null,null,null,null,null,"","","",""]
[null,null,2023,7,"Malin comme un singe","tekst van gemiddelde moeilijkheid",64.666666666666671,4,0.17999999999999972,null,null,null,null,null,null,null,null,"","","",""]
[null,null,2023,8,"Combiner le sport et l’écologie, c’est possible","tekst van gemiddelde moeilijkheid",61.666666666666671,4,0.45000000000000018,null,null,null,null,null,null,null,null,"","","",""]
[null,null,2023,9,"Plus de 3 millions de Français accros au journal intime","tekst van gemiddelde moeilijkheid",55.666666666666671,7,0.98999999999999932,null,null,null,null,null,null,null,null,"","","",""]
[null,null,2023,10,"La seconde vie des églises","moeilijke tekst",42.666666666666671,4,2.1599999999999993,null,null,null,null,null,null,null,null,"","","",""]
[null,null,2023,11,"L’Obélisque de Paris, bijou de la place de la Concorde","tekst van gemiddelde moeilijkheid",65.666666666666671,2,8.9999999999999858E-2,null,null,null,null,null,null,null,null,"","","",""]
[null,null,2023,12,"Le menu préféré des vaches","moeilijke tekst",27.666666666666668,1,3.51,null,null,null,null,null,null,null,null,"","","",""]
[null,null,2024,1,"L’ombre de la Dame de Fer","tekst van gemiddelde moeilijkheid",48,1,1.6799999999999997,null,null,null,null,null,null,null,null,{"$f":"IF($K143=\"ü\",$G143,\"\")","v":""},{"$f":"IF($K143=\"ü\",$H143,\"\")","v":""},{"$f":"IF($K143=\"ü\",$I143,\"\")","v":""},{"$f":"IF($K143=\"ü\",$G143*$H143,\"\")","v":""}]
[null,null,2024,2,"Chuuuttt !","tekst van gemiddelde moeilijkheid",66,4,5.9999999999999609E-2,null,null,null,null,null,null,null,null,"","","",""]
[null,null,2024,3,"L'homme le plus grand de France","tekst van gemiddelde moeilijkheid",68,6,-0.12000000000000011,null,null,null,null,null,null,null,null,"","","",""]
[null,null,2024,4,"Le premier Tour de France : chaos, bagarres et hystérie","tekst van gemiddelde moeilijkheid",64,9,0.24000000000000021,null,null,null,null,null,null,null,null,"","","",""]
[null,null,2024,5,"Ils ont un goût pour l'aventure","tekst van gemiddelde moeilijkheid",52,6,1.3200000000000003,null,null,null,null,null,null,null,null,"","","",""]
[null,null,2024,6,"Rocambole, un \" Netflix littéraire \"","tekst van gemiddelde moeilijkheid",53,3,1.2300000000000004,null,null,null,null,null,null,null,null,"","","",""]
[null,null,2024,7,"L'histoire d'Eleanor","tekst van gemiddelde moeilijkheid",57.999999999999993,3,0.78000000000000114,null,null,null,null,null,null,null,null,"","","",""]
[null,null,2024,8,"Elle a hérité du château de ses ancêtres","tekst van gemiddelde moeilijkheid",53,6,1.2300000000000004,null,null,null,null,null,null,null,null,"","","",""]
[null,null,2024,9,"Quand les géants descendent sur la ville","moeilijke tekst",45,5,1.9500000000000002,null,null,null,null,null,null,null,null,"","","",""]
[null,null,2024,10,"L'année de césure de Lina","tekst van gemiddelde moeilijkheid",54,4,1.1399999999999997,null,null,null,null,null,null,null,null,"","","",""]
[null,null,2024,11,"Des porcs à l'aéroport d'Amsterdam","tekst van gemiddelde moeilijkheid",49,3,1.5899999999999999,null,null,null,null,null,null,null,null,"","","",""]

{"sheet":"geselecteerde teksten","index":1,"n_rows":10,"n_cols":7,"rows_kept":10,"cut":false,"hidden":false,"merged":[[9,4,9,5],[11,4,11,5],[10,4,10,5]]}
[null,"Frans havo"]
[]
[null,null,"inhoud van de toets"]
[]
[null,null,"schaallengte",null,{"$f":"'selecteer de teksten'!P12","v":0}]
[null,null,"N-term",null,{"$f":"'selecteer de teksten'!P15","v":1}]
[]
[null,null,"teksten in chronologische volgorde"]
[]
[null,null,"jaar","tekst","omschrijving",null,"punten"]

{"sheet":"omzettingstabel","index":2,"n_rows":47,"n_cols":16,"rows_kept":47,"cut":false,"hidden":false,"merged":[]}
[]
[null,"Vaknaam:",null,null,null,{"$f":"'selecteer de teksten'!B1","v":"Frans havo"}]
[null,"Schaallengte:",null,null,null,45]
[null,"Normeringsterm:",null,null,null,1.4]
[]
[null,"Score","Cijfer",null,"Score","Cijfer",null,null,null,null,null,null,null,null,null,"####"]
[]
[null,0,"1,0",null,40,"9,4"]
[null,1,"1,4",null,41,"9,6"]
[null,2,"1,8",null,42,"9,7"]
[null,3,"2,0",null,43,"9,8"]
[null,4,"2,2",null,44,"9,9"]
[null,5,"2,4",null,45,"10,0"]
[null,6,"2,6"]
[null,7,"2,8"]
[null,8,"3,0"]
[null,9,"3,2"]
[null,10,"3,4"]
[null,11,"3,6"]
[null,12,"3,8"]
[null,13,"4,0"]
[null,14,"4,2"]
[null,15,"4,4"]
[null,16,"4,6"]
[null,17,"4,8"]
[null,18,"5,0"]
[null,19,"5,2"]
[null,20,"5,4"]
[null,21,"5,6"]
[null,22,"5,8"]
[null,23,"6,0"]
[null,24,"6,2"]
[null,25,"6,4"]
[null,26,"6,6"]
[null,27,"6,8"]
[null,28,"7,0"]
[null,29,"7,2"]
[null,30,"7,4"]
[null,31,"7,6"]
[null,32,"7,8"]
[null,33,"8,0"]
[null,34,"8,2"]
[null,35,"8,4"]
[null,36,"8,6"]
[null,37,"8,8"]
[null,38,"9,0"]
[null,39,"9,2"]